bitfinex-derivatives/quotes_BNBF0:USTF0_20250220
["timestamp","ask_amount","ask_price","bid_price","bid_amount"]
[1740089867918,2.93699521,653.76,652.96,0.30629747]
[1740089868217,2.93699521,653.75,652.96,0.30629747]
[1740089868417,2.93699521,653.74,652.96,0.30629747]
[1740089868619,2.93699521,653.73,652.96,0.30629747]
[1740089868920,2.93699521,653.72,652.96,0.30629747]
[1740089869112,2.93699521,653.71,652.96,0.30629747]
[1740089869313,2.93699521,653.7,652.96,0.30629747]
[1740089869518,2.93699521,653.69,652.96,0.30629747]
[1740089869713,2.93699521,653.68,652.96,0.30629747]
[1740089869913,2.93699521,653.67,652.96,0.30629747]
[1740089870113,2.93699521,653.66,652.96,0.30629747]
[1740089870314,2.93699521,653.65,652.96,0.30629747]
[1740089870514,2.93699521,653.64,652.96,0.30629747]
[1740089870715,2.93699521,653.63,652.96,0.30629747]
[1740089870918,2.93699521,653.62,652.96,0.30629747]
[1740089871219,2.93699521,653.61,652.96,0.30629747]
[1740089871413,2.93699521,653.6,652.96,0.30629747]
[1740089871616,2.93699521,653.59,652.96,0.30629747]
[1740089871818,2.93699521,653.58,652.96,0.30629747]
[1740089872014,2.15901438,653.59,652.96,0.30629747]
[1740089872015,2.93699521,653.57,652.96,0.30629747]
[1740089872218,2.93699521,653.56,652.96,0.30629747]
[1740089872416,2.93699521,653.55,652.96,0.30629747]
[1740089872617,2.93699521,653.54,652.96,0.30629747]
[1740089872816,2.93699521,653.53,652.96,0.30629747]
[1740089873014,2.93699521,653.52,652.96,0.30629747]
[1740089873218,2.93699521,653.51,652.96,0.30629747]
[1740089873420,2.15901438,653.59,652.96,0.30629747]
[1740089873621,2.15901438,653.5,652.96,0.30629747]
[1740089874718,2.93572518,653.49,652.96,0.30629747]
[1740089874920,2.15901438,653.5,652.96,0.30629747]
[1740089875121,2.93571814,653.49,652.96,0.30629747]
[1740089875321,1.923,653.79,652.96,0.30629747]
[1740089875522,2.93565976,653.78,652.96,0.30629747]
[1740089875821,1.923,653.79,652.96,0.30629747]
[1740089878028,2.93513719,653.78,652.96,0.30629747]
[1740089878221,2.93513719,653.77,652.96,0.30629747]
[1740089878425,2.93513719,653.76,652.96,0.30629747]
[1740089878621,2.93513719,653.75,652.96,0.30629747]
[1740089878822,2.93513719,653.74,652.96,0.30629747]
[1740089879025,2.93513719,653.73,652.96,0.30629747]
[1740089879222,2.93513719,653.72,652.96,0.30629747]
[1740089879424,2.93513719,653.71,652.96,0.30629747]
[1740089879626,2.15779712,653.78,652.96,0.30629747]
[1740089879827,2.93510153,653.77,652.96,0.30629747]
[1740089880023,2.93510153,653.76,652.96,0.30629747]
[1740089880229,2.93510153,653.75,652.96,0.30629747]
[1740089880429,2.93510153,653.74,652.96,0.30629747]
[1740089880629,2.15779712,653.76,652.96,0.30629747]
[1740089881933,2.15779712,653.75,652.96,0.30629747]
[1740089883330,2.15779712,653.74,652.96,0.30629747]
[1740089884536,1.57,653.73,652.96,0.30629747]
[1740089884730,3.72779712,653.73,652.96,0.30629747]
[1740089886236,2.15779712,653.72,652.96,0.30629747]
[1740089887234,2.93464182,653.71,652.96,0.30629747]
[1740089887435,2.93464182,653.7,652.96,0.30629747]
[1740089887637,2.93464182,653.69,652.96,0.30629747]
[1740089887935,2.93464182,653.68,652.96,0.30629747]
[1740089888133,2.93464182,653.67,652.96,0.30629747]
[1740089888338,2.93464182,653.66,652.96,0.30629747]
[1740089888535,2.93464182,653.65,652.96,0.30629747]
[1740089888738,2.93464182,653.64,652.96,0.30629747]
[1740089888931,2.15779712,653.69,652.96,0.30629747]
[1740089888932,2.93464182,653.63,652.96,0.30629747]
[1740089889132,2.93464182,653.62,652.96,0.30629747]
[1740089889334,2.93464182,653.61,652.96,0.30629747]
[1740089889534,2.93464182,653.6,652.96,0.30629747]
[1740089889733,2.93464182,653.59,652.96,0.30629747]
[1740089889940,2.93464182,653.58,652.96,0.30629747]
[1740089890137,2.93464182,653.57,652.96,0.30629747]
[1740089890439,2.93464182,653.56,652.96,0.30629747]
[1740089890637,2.93464182,653.55,652.96,0.30629747]
[1740089890838,2.15779712,653.6,652.96,0.30629747]
[1740089890839,2.93464182,653.54,652.96,0.30629747]
[1740089891039,2.93464182,653.53,652.96,0.30629747]
[1740089891339,5.09243894,653.52,652.96,0.30629747]
[1740089891538,2.93464182,653.51,652.96,0.30629747]
[1740089891738,2.93464182,653.5,652.96,0.30629747]
[1740089892037,2.93464182,653.49,652.96,0.30629747]
[1740089892341,2.93464182,653.48,652.96,0.30629747]
[1740089892537,2.93464182,653.47,652.96,0.30629747]
[1740089892736,2.93464182,653.46,652.96,0.30629747]
[1740089892937,2.93464182,653.45,652.96,0.30629747]
[1740089893134,2.93464182,653.44,652.96,0.30629747]
[1740089893335,2.93464182,653.43,652.96,0.30629747]
[1740089893534,2.93464182,653.42,652.96,0.30629747]
[1740089893740,2.93464182,653.41,652.96,0.30629747]
[1740089893935,2.93464182,653.4,652.96,0.30629747]
[1740089894137,2.93464182,653.39,652.96,0.30629747]
[1740089894336,2.93464182,653.38,652.96,0.30629747]
[1740089894542,2.93464182,653.37,652.96,0.30629747]
[1740089894843,2.93464182,653.36,652.96,0.30629747]
[1740089895041,2.93464182,653.35,652.96,0.30629747]
[1740089895238,2.93464182,653.34,652.96,0.30629747]
[1740089895443,5.09243894,653.33,652.96,0.30629747]
[1740089895644,2.93464182,653.32,652.96,0.30629747]
[1740089895845,2.93464182,653.31,652.96,0.30629747]
[1740089896038,2.93464182,653.3,652.96,0.30629747]
[1740089896240,2.93464182,653.29,652.96,0.30629747]
[1740089896545,2.93464182,653.28,652.96,0.30629747]
[1740089896745,2.15779712,653.33,652.96,0.30629747]
[1740089897044,2.9335775,653.32,652.96,0.30629747]
[1740089897245,2.9335775,653.31,652.96,0.30629747]
[1740089897444,2.9335775,653.3,652.96,0.30629747]
[1740089897646,2.9335775,653.29,652.96,0.30629747]
[1740089897844,2.9335775,653.28,652.96,0.30629747]
[1740089898047,2.15779712,653.31,652.96,0.30629747]
[1740089898343,2.93355941,653.3,652.96,0.30629747]
[1740089898539,2.93355941,653.29,652.96,0.30629747]
[1740089898745,2.93355941,653.28,652.96,0.30629747]
[1740089899044,2.93355941,653.27,652.96,0.30629747]
[1740089899243,2.93355941,653.26,652.96,0.30629747]
[1740089899438,2.15779712,653.27,652.96,0.30629747]
[1740089899646,2.9328338,653.26,652.96,0.30629747]
[1740089899845,2.15779712,653.27,652.96,0.30629747]
[1740089900045,2.93286234,653.26,652.96,0.30629747]
[1740089900246,2.9326984,653.25,652.96,0.30629747]
[1740089900443,2.15779712,653.27,652.96,0.30629747]
[1740089900647,2.93233255,653.26,652.96,0.30629747]
[1740089900842,2.93233255,653.25,652.96,0.30629747]
[1740089901044,2.15779712,653.27,652.96,0.30629747]
[1740089901247,2.9325183,653.26,652.96,0.30629747]
[1740089901448,2.9325183,653.25,652.96,0.30629747]
[1740089901642,1.585,653.62,652.96,0.30629747]
[1740089901846,2.93211913,653.61,652.96,0.30629747]
[1740089902046,2.93211913,653.6,652.96,0.30629747]
[1740089902247,2.93211913,653.59,652.96,0.30629747]
[1740089902447,2.93211913,653.58,652.96,0.30629747]
[1740089902650,2.93211913,653.57,652.96,0.30629747]
[1740089902841,2.93211913,653.56,652.96,0.30629747]
[1740089903045,2.93211913,653.55,652.96,0.30629747]
[1740089903348,2.93211913,653.54,652.96,0.30629747]
[1740089903548,2.93211913,653.53,652.96,0.30629747]
[1740089903748,2.93211913,653.52,652.96,0.30629747]
[1740089903950,2.93211913,653.51,652.96,0.30629747]
[1740089904150,2.93211913,653.5,652.96,0.30629747]
[1740089904448,2.93211913,653.49,652.96,0.30629747]
[1740089904648,2.93211913,653.48,652.96,0.30629747]
[1740089904852,2.93211913,653.47,652.96,0.30629747]
[1740089905049,2.93211913,653.46,652.96,0.30629747]
[1740089905249,2.93211913,653.45,652.96,0.30629747]
[1740089905450,2.93211913,653.44,652.96,0.30629747]
[1740089905650,2.93211913,653.43,652.96,0.30629747]
[1740089905852,2.93211913,653.42,652.96,0.30629747]
[1740089906049,2.93211913,653.41,652.96,0.30629747]
[1740089906250,2.93211913,653.4,652.96,0.30629747]
[1740089906449,2.93211913,653.39,652.96,0.30629747]
[1740089906748,2.93211913,653.38,652.96,0.30629747]
[1740089906951,5.08767442,653.37,652.96,0.30629747]
[1740089907150,2.93211913,653.36,652.96,0.30629747]
[1740089907351,2.93211913,653.35,652.96,0.30629747]
[1740089907551,2.93211913,653.34,652.96,0.30629747]
[1740089907752,2.93211913,653.33,652.96,0.30629747]
[1740089907951,2.93211913,653.32,652.96,0.30629747]
[1740089908147,2.92650031,653.31,652.96,0.30629747]
[1740089908452,2.15555529,653.32,652.96,0.30629747]
[1740089909748,2.15555529,653.31,652.96,0.30629747]
[1740089911356,4.227,653.62,652.96,0.30629747]
[1740089912451,2.15175732,653.61,652.96,0.30629747]
[1740089914159,2.15175732,653.6,652.96,0.30629747]
[1740089914457,2.15175732,653.6,652.36,1.14624941]
[1740089914659,2.15175732,653.6,652.76,1.59719115]
[1740089914858,2.15175732,653.6,652.38,0.30656979]
[1740089915056,2.15175732,653.6,652.71,1.597295]
[1740089915452,2.15175732,653.6,652.38,0.30656979]
[1740089915656,2.15175732,653.59,652.71,1.5973561]
[1740089915959,2.15175732,653.59,652.38,0.30656979]
[1740089916258,2.15175732,653.59,652.71,1.59736221]
[1740089916451,2.15175732,653.59,652.38,0.30656979]
[1740089916655,2.15175732,653.59,652.71,1.59736221]
[1740089916855,2.15175732,653.59,652.38,0.30656979]
[1740089917158,2.15175732,653.59,652.54,1.5975272]
[1740089917454,2.15175732,653.59,652.38,0.30656979]
[1740089917654,2.15175732,653.59,652.54,1.59767388]
[1740089918061,2.15175732,653.58,652.38,0.30656979]
[1740089918359,2.92084955,653.57,652.54,1.59767388]
[1740089918659,2.15175732,653.58,652.39,1.59784505]
[1740089918660,2.92084955,653.56,652.39,1.59784505]
[1740089918861,2.92084955,653.55,652.39,1.59784505]
[1740089919060,2.92084955,653.54,652.39,1.59784505]
[1740089919264,2.92084955,653.53,652.39,1.59784505]
[1740089919562,2.92084955,653.52,652.39,1.59784505]
[1740089919761,2.92084955,653.51,652.39,1.59784505]
[1740089919962,2.92084955,653.5,652.39,1.59784505]
[1740089920163,2.92084955,653.49,652.39,1.59784505]
[1740089920463,5.07260687,653.48,652.39,1.59784505]
[1740089920763,2.92084955,653.47,652.39,1.59784505]
[1740089920960,2.92084955,653.46,652.39,1.59784505]
[1740089921160,2.92084955,653.45,652.39,1.59784505]
[1740089921362,2.92084955,653.44,652.39,1.59784505]
[1740089921562,2.92084955,653.43,652.39,1.59784505]
[1740089921759,2.92084955,653.42,652.39,1.59784505]
[1740089922060,2.92084955,653.41,652.39,1.59784505]
[1740089922266,2.92084955,653.4,652.39,1.59784505]
[1740089922564,2.92084955,653.39,652.39,1.59784505]
[1740089922760,2.92084955,653.38,652.39,1.59784505]
[1740089922958,2.92084955,653.37,652.39,1.59784505]
[1740089923161,2.92084955,653.36,652.39,1.59784505]
[1740089923364,2.92084955,653.35,652.39,1.59784505]
[1740089923564,2.92084955,653.34,652.39,1.59784505]
[1740089923765,2.92084955,653.33,652.39,1.59784505]
[1740089923959,2.92084955,653.32,652.39,1.59784505]
[1740089924164,2.92084955,653.31,652.39,1.59784505]
[1740089924366,2.92084955,653.3,652.39,1.59784505]
[1740089924564,2.92084955,653.29,652.39,1.59784505]
[1740089924761,2.92084955,653.28,652.39,1.59784505]
[1740089924962,2.92084955,653.27,652.39,1.59784505]
[1740089925166,2.92084955,653.26,652.39,1.59784505]
[1740089925467,2.92084955,653.25,652.39,1.59784505]
[1740089925668,2.92084955,653.24,652.39,1.59784505]
[1740089925868,2.92084955,653.23,652.39,1.59784505]
[1740089926062,2.92084955,653.22,652.39,1.59784505]
[1740089926267,2.92084955,653.21,652.39,1.59784505]
[1740089926569,2.92084955,653.2,652.39,1.59784505]
[1740089926868,2.92084955,653.19,652.4,0.30656039]
[1740089927067,2.92084955,653.18,652.4,0.30656039]
[1740089927268,2.92084955,653.17,652.4,0.30656039]
[1740089927569,2.92084955,653.16,652.4,0.30656039]
[1740089927764,2.92084955,653.15,652.4,0.30656039]
[1740089927961,2.92084955,653.14,652.4,0.30656039]
[1740089928167,2.92084955,653.13,652.4,0.30656039]
[1740089928364,2.92084955,653.12,652.4,0.30656039]
[1740089928567,2.92084955,653.11,652.4,0.30656039]
[1740089928767,2.92084955,653.1,652.4,0.30656039]
[1740089928967,2.92084955,653.09,652.4,0.30656039]
[1740089929163,2.92084955,653.08,652.4,0.30656039]
[1740089929365,2.92084955,653.07,652.4,0.30656039]
[1740089929564,2.92084955,653.06,652.4,0.30656039]
[1740089929763,2.92084955,653.05,652.4,0.30656039]
[1740089929967,2.92084955,653.04,652.4,0.30656039]
[1740089930169,2.92084955,653.03,652.4,0.30656039]
[1740089930365,2.92084955,653.02,652.4,0.30656039]
[1740089930665,2.92084955,653.01,652.4,0.30656039]
[1740089930869,2.92084955,653.0,652.4,0.30656039]
[1740089931066,2.92084955,652.99,652.4,0.30656039]
[1740089931270,2.92084955,652.98,652.4,0.29252448]
[1740089931567,2.92084955,652.97,652.4,0.29252448]
[1740089931769,2.92084955,652.96,652.4,0.29252448]
[1740089931970,2.92084955,652.95,652.4,0.29252448]
[1740089932271,2.92084955,652.94,652.4,0.29252448]
[1740089932465,2.15175732,652.97,652.4,0.29252448]
[1740089932668,2.91067347,652.96,652.4,0.29252448]
[1740089932871,2.91067347,652.95,652.4,0.29252448]
[1740089933073,2.91067347,652.94,652.4,0.29252448]
[1740089933272,2.15175732,652.97,652.4,0.29252448]
[1740089933674,1.597,653.24,652.4,0.29252448]
[1740089934075,2.14044052,653.23,652.4,0.29252448]
[1740089934676,2.91048066,653.22,652.4,0.29252448]
[1740089934871,2.14044052,653.23,652.4,0.29252448]
[1740089935477,2.91103812,653.22,652.4,0.29252448]
[1740089935677,2.91103812,653.21,652.4,0.29252448]
[1740089935879,2.14044052,653.21,652.4,0.29252448]
[1740089936776,2.9116003,653.2,652.4,0.29252448]
[1740089936978,2.14044052,653.21,652.4,0.29252448]
[1740089937179,2.91154636,653.2,652.4,0.29252448]
[1740089937374,2.14044052,653.19,652.4,0.29252448]
[1740089938976,2.14044052,653.18,652.4,0.29252448]
[1740089940672,5.05307794,653.17,652.4,0.29252448]
[1740089940878,2.14044052,653.17,652.4,0.29252448]
[1740089941082,2.91247824,653.16,652.4,0.29252448]
[1740089941286,2.14044052,653.17,652.4,0.29252448]
[1740089941287,2.91247824,653.15,652.4,0.29252448]
[1740089941578,2.91247824,653.14,652.4,0.29252448]
[1740089941782,2.91247824,653.13,652.4,0.29252448]
[1740089941983,2.91247824,653.12,652.4,0.29252448]
[1740089942178,2.91247824,653.11,652.4,0.29252448]
[1740089942380,2.9124196,653.1,652.4,0.29252448]
[1740089942576,2.14044052,653.12,652.4,0.29252448]
[1740089942778,2.91276752,653.11,652.4,0.29252448]
[1740089942983,2.91276752,653.1,652.4,0.29252448]
[1740089943185,2.91276752,653.09,652.4,0.29252448]
[1740089943483,2.91276752,653.08,652.4,0.29252448]
[1740089943678,2.91276752,653.07,652.4,0.29252448]
[1740089943877,2.91276752,653.06,652.4,0.29252448]
[1740089944184,2.91276752,653.05,652.4,0.29252448]
[1740089944377,2.91276752,653.04,652.4,0.29252448]
[1740089944580,2.91276752,653.03,652.4,0.29252448]
[1740089944777,2.91276752,653.02,652.4,0.29252448]
[1740089944985,2.91276752,653.01,652.4,0.29252448]
[1740089945184,2.91276752,653.0,652.4,0.29252448]
[1740089945381,2.91276752,652.99,652.4,0.29252448]
[1740089945582,2.91276752,652.98,652.4,0.29252448]
[1740089945783,2.91276752,652.97,652.4,0.29252448]
[1740089945984,2.91276752,652.96,652.4,0.29252448]
[1740089946281,2.91276752,652.95,652.4,0.29252448]
[1740089946586,2.91276752,652.94,652.4,0.29252448]
[1740089946787,5.05320804,652.93,652.4,0.29252448]
[1740089946982,2.14044052,652.93,652.4,0.29252448]
[1740089947885,2.91418293,652.92,652.4,0.29252448]
[1740089948085,2.14044052,652.91,652.4,0.29252448]
[1740089950091,2.14044052,652.9,652.4,0.29252448]
[1740089951992,1.566,653.09,652.4,0.29252448]
[1740089955695,2.14498297,653.08,652.4,0.29252448]
[1740089957396,2.14498297,653.07,652.4,0.29252448]
[1740089959298,2.14498297,653.06,652.4,0.29252448]
[1740089961199,2.14498297,653.05,652.4,0.29252448]
[1740089962699,2.14498297,653.04,652.4,0.29252448]
[1740089964802,2.14498297,653.03,652.4,0.29252448]
[1740089964996,2.92206015,653.02,652.4,0.29252448]
[1740089965199,2.92206015,653.01,652.4,0.29252448]
[1740089965400,2.92263767,653.0,652.4,0.29252448]
[1740089965600,2.14498297,653.03,652.4,0.29252448]
[1740089965800,2.9226368,653.02,652.4,0.29252448]
[1740089965997,2.9226368,653.01,652.4,0.29252448]
[1740089966203,5.06761977,653.0,652.4,0.29252448]
[1740089966403,2.14498297,653.0,652.4,0.29252448]
[1740089967402,2.92381581,652.99,652.4,0.29252448]
[1740089967603,2.92381581,652.98,652.4,0.29252448]
[1740089967802,2.92381581,652.97,652.4,0.29252448]
[1740089968005,2.92381581,652.96,652.4,0.29252448]
[1740089968201,2.92381581,652.95,652.4,0.29252448]
[1740089968406,2.92381581,652.94,652.4,0.29252448]
[1740089968606,2.92381581,652.93,652.4,0.29252448]
[1740089968808,2.92381581,652.92,652.4,0.29252448]
[1740089969007,2.92381581,652.91,652.4,0.29252448]
[1740089969209,2.92381581,652.9,652.4,0.29252448]
[1740089969409,2.92381581,652.89,652.4,0.29252448]
[1740089969611,2.92381581,652.88,652.4,0.29252448]
[1740089969811,2.14498297,652.9,652.4,0.29252448]
[1740089970009,2.92496264,652.89,652.4,0.29252448]
[1740089970203,2.92496264,652.88,652.4,0.29252448]
[1740089970510,2.14498297,652.9,652.4,0.29252448]
[1740089970705,2.92574969,652.89,652.4,0.29252448]
[1740089970904,2.92574969,652.88,652.4,0.29252448]
[1740089971110,2.14498297,652.88,652.4,0.29252448]
[1740089972508,1.566,653.09,652.4,0.29252448]
[1740089972712,2.9273262,653.08,652.4,0.29252448]
[1740089972906,2.9273262,653.07,652.4,0.29252448]
[1740089973103,2.9273262,653.06,652.4,0.29252448]
[1740089973309,2.9273262,653.05,652.4,0.29252448]
[1740089973506,2.9273262,653.04,652.4,0.29252448]
[1740089973706,2.9273262,653.03,652.4,0.29252448]
[1740089973909,2.9273262,653.02,652.4,0.29252448]
[1740089974105,2.9273262,653.01,652.4,0.29252448]
[1740089974308,2.9273262,653.0,652.4,0.29252448]
[1740089974510,2.9273262,652.99,652.4,0.29252448]
[1740089974707,2.9273262,652.98,652.4,0.29252448]
[1740089974907,2.9273262,652.97,652.4,0.29252448]
[1740089975110,2.9273262,652.96,652.4,0.29252448]
[1740089975415,2.9273262,652.95,652.4,0.29252448]
[1740089975713,2.9273262,652.94,652.4,0.29252448]
[1740089976013,2.15279815,652.99,652.4,0.29252448]
[1740089976210,5.0829065,652.98,652.4,0.29252448]
[1740089976415,2.93010835,652.97,652.4,0.29252448]
[1740089976608,2.93010835,652.96,652.4,0.29252448]
[1740089976812,2.93010835,652.95,652.4,0.29252448]
[1740089977016,2.93010835,652.94,652.4,0.29252448]
[1740089977211,2.15279815,652.98,652.4,0.29252448]
[1740089977515,2.15279815,652.98,652.43,1.14624941]
[1740089977516,2.93030341,652.97,652.43,1.14624941]
[1740089977716,2.93030341,652.96,652.43,1.14624941]
[1740089978017,2.93030341,652.95,652.43,1.14624941]
[1740089978215,2.93030341,652.94,652.43,1.14624941]
[1740089978419,2.93030341,652.93,652.43,1.14624941]
[1740089978614,2.15279815,652.97,652.43,1.14624941]
[1740089978816,2.93008745,652.96,652.43,1.14624941]
[1740089979013,2.93008745,652.95,652.43,1.14624941]
[1740089979216,2.93008745,652.94,652.43,1.14624941]
[1740089979518,2.93008745,652.93,652.43,1.14624941]
[1740089979818,2.15279815,652.96,652.43,1.14624941]
[1740089980017,2.93021661,652.95,652.43,1.14624941]
[1740089980218,2.93021661,652.94,652.42,1.14624941]
[1740089980519,5.08301476,652.93,652.42,1.14624941]
[1740089980718,2.93021661,652.92,652.42,1.14624941]
[1740089981017,2.15279815,652.93,652.42,1.14624941]
[1740089981218,2.93073852,652.92,652.42,1.14624941]
[1740089981414,2.15279815,652.93,652.42,1.14624941]
[1740089981620,2.93091452,652.92,652.42,1.14624941]
[1740089981915,2.15279815,652.93,652.42,1.14624941]
[1740089982116,0.649,653.16,652.42,1.14624941]
[1740089982318,2.93151033,653.15,652.42,1.14624941]
[1740089982518,2.93151033,653.14,652.42,1.14624941]
[1740089982718,2.15588343,653.14,652.41,1.14624941]
[1740089982918,0.649,653.16,652.41,1.14624941]
[1740089983422,2.93159527,653.15,652.41,1.14624941]
[1740089983617,2.93159527,653.14,652.41,1.14624941]
[1740089983819,2.93159527,653.13,652.41,1.14624941]
[1740089984020,2.93159527,653.12,652.41,1.14624941]
[1740089984225,2.93159527,653.11,652.41,1.14624941]
[1740089984416,2.93159527,653.1,652.41,1.14624941]
[1740089984619,2.93159527,653.09,652.41,1.14624941]
[1740089984819,2.93159527,653.08,652.49,1.14624941]
[1740089985018,2.93159527,653.07,652.49,1.14624941]
[1740089985218,5.0873794,653.06,652.49,1.14624941]
[1740089985419,2.93159527,653.05,652.49,1.14624941]
[1740089985621,2.93159527,653.04,652.49,1.14624941]
[1740089985827,2.15578413,653.06,652.49,1.14624941]
[1740089986027,2.9323533,653.05,652.49,1.14624941]
[1740089986227,2.93230685,653.04,652.49,1.14624941]
[1740089986420,2.15578413,653.06,652.49,1.14624941]
[1740089987323,2.15578413,653.06,652.5,1.14624941]
[1740089987627,2.15578413,653.05,652.5,1.14624941]
[1740089989128,2.15578413,653.04,652.5,1.14624941]
[1740089989628,2.15578413,653.04,652.43,1.59799791]
[1740089989826,2.15578413,653.04,652.43,1.9045442]
[1740089991124,2.15578413,653.03,652.43,1.9045442]
[1740089992730,2.15578413,653.02,652.43,1.9045442]
[1740089993431,2.93291881,653.01,652.43,1.9045442]
[1740089993630,2.15578413,653.02,652.43,1.9045442]
[1740089993830,2.93291542,653.01,652.43,1.9045442]
[1740089994030,2.15578413,653.02,652.43,1.9045442]
[1740089994231,2.93295836,653.01,652.43,1.9045442]
[1740089994430,2.15578413,653.01,652.43,1.9045442]
[1740089994829,2.93312924,653.0,652.43,1.9045442]
[1740089995025,2.93312924,652.99,652.43,1.9045442]
[1740089995231,2.15578413,653.01,652.43,1.9045442]
[1740089995531,2.93309015,653.0,652.43,1.9045442]
[1740089995732,2.15578413,653.01,652.43,1.9045442]
[1740089996031,0.649,653.16,652.43,1.9045442]
[1740089996231,2.93340327,653.15,652.43,1.9045442]
[1740089996530,2.93340327,653.14,652.43,1.9045442]
[1740089996725,5.09090679,653.13,652.43,1.9045442]
[1740089996925,2.93340327,653.12,652.43,1.9045442]
[1740089997129,2.93340327,653.11,652.43,1.9045442]
[1740089997330,2.93340327,653.1,652.43,1.9045442]
[1740089997529,2.93340327,653.09,652.43,1.9045442]
[1740089997730,2.93340327,653.08,652.43,1.9045442]
[1740089997930,2.93340327,653.07,652.43,1.9045442]
[1740089998129,2.15750352,653.13,652.43,1.9045442]
[1740089998130,2.93340327,653.06,652.43,1.9045442]
[1740089998330,2.93340327,653.05,652.43,1.9045442]
[1740089998528,2.93340327,653.04,652.43,1.9045442]
[1740089998727,2.93340327,653.03,652.43,1.9045442]
[1740089998932,2.93340327,653.02,652.43,1.9045442]
[1740089999231,2.93539414,653.01,652.43,1.9045442]
[1740089999433,2.15750352,653.05,652.43,1.9045442]
[1740089999635,2.93541532,653.04,652.43,1.9045442]
[1740089999931,2.93541532,653.03,652.43,1.9045442]
[1740090000131,2.93541532,653.02,652.43,1.9045442]
[1740090000333,2.93541532,653.01,652.43,1.9045442]
[1740090000533,2.15750352,653.05,652.43,1.9045442]
[1740090000726,2.93520128,653.04,652.43,1.9045442]
[1740090001033,5.0927048,653.03,652.43,1.9045442]
[1740090001333,2.93520128,653.02,652.43,1.9045442]
[1740090001533,2.93520128,653.01,652.43,0.30654629]
[1740090001828,2.15750352,653.03,652.43,0.30654629]
[1740090001829,2.93520128,653.0,652.43,1.90453197]
[1740090002032,2.15750352,653.03,652.43,1.90453197]
[1740090002234,2.93515552,653.02,652.43,1.90453197]
[1740090002533,2.93515552,653.01,652.43,1.90453197]
[1740090002728,2.9349363,653.0,652.43,1.90453197]
[1740090002928,2.15750352,653.02,652.43,1.90453197]
[1740090003132,2.93494745,653.01,652.43,1.90453197]
[1740090003330,2.15750352,653.02,652.43,1.90453197]
[1740090003532,2.93484386,653.01,652.43,1.90453197]
[1740090003732,2.15750352,653.02,652.43,1.90453197]
[1740090003933,2.93480201,653.01,652.43,1.90453197]
[1740090004135,2.15750352,653.02,652.43,1.90453197]
[1740090004335,5.0922793,653.01,652.43,1.90453197]
[1740090004535,2.15750352,653.01,652.43,1.90453197]
[1740090004730,2.9347027,653.0,652.43,1.90453197]
[1740090004929,2.15750352,653.01,652.43,1.90453197]
[1740090005136,2.93467887,653.0,652.43,1.90453197]
[1740090005330,2.15750352,653.01,652.43,1.90453197]
[1740090005534,5.09221397,653.0,652.43,3.05078138]
[1740090005730,2.15750352,653.0,652.43,3.05078138]
[1740090007231,2.304,653.21,652.43,3.05078138]
[1740090007430,2.93529717,653.2,652.43,3.05078138]
[1740090007631,5.09401219,653.19,652.47,1.14624941]
[1740090007834,2.93529717,653.18,652.47,1.14624941]
[1740090008035,2.93529717,653.17,652.47,1.14624941]
[1740090008233,2.93529717,653.16,652.47,1.14624941]
[1740090008431,2.93529717,653.15,652.47,1.14624941]
[1740090008636,2.93529717,653.14,652.47,1.14624941]
[1740090008837,2.93529717,653.13,652.47,1.14624941]
[1740090009033,5.09401219,653.12,652.47,1.14624941]
[1740090009232,2.93529717,653.11,652.47,1.14624941]
[1740090009538,2.93529717,653.1,652.47,1.14624941]
[1740090009738,2.93529717,653.09,652.47,1.14624941]
[1740090009938,2.15871502,653.12,652.47,1.14624941]
[1740090009939,2.93529717,653.08,652.47,1.14624941]
[1740090010140,5.09401219,653.07,652.46,1.14624941]
[1740090010340,2.93529717,653.06,652.46,1.14624941]
[1740090010541,2.93529717,653.05,652.46,1.14624941]
[1740090010839,2.93529717,653.04,652.46,1.14624941]
[1740090011039,2.93529717,653.03,652.46,1.14624941]
[1740090011239,2.93529717,653.02,652.46,1.14624941]
[1740090011439,2.93529717,653.01,652.46,1.14624941]
[1740090011640,2.15871502,653.07,652.46,1.14624941]
[1740090012337,5.616,653.21,652.46,1.14624941]
[1740090012834,2.16035238,653.2,652.46,1.14624941]
[1740090013039,2.16035238,653.2,652.51,1.14624941]
[1740090014235,2.16035238,653.19,652.51,1.14624941]
[1740090015540,2.16035238,653.19,652.46,1.59796734]
[1740090015735,2.16035238,653.18,652.46,1.59796734]
[1740090017136,1.83,653.17,652.46,1.59796734]
[1740090017341,3.99035238,653.17,652.46,1.59796734]
[1740090018743,2.16035238,653.16,652.46,1.59796734]
[1740090020442,2.16035238,653.15,652.46,1.59796734]
[1740090021041,2.93651323,653.14,652.46,1.59796734]
[1740090021245,2.93651323,653.13,652.46,1.59796734]
[1740090021444,2.93651323,653.12,652.46,1.59796734]
[1740090021644,2.93651323,653.11,652.46,1.59796734]
[1740090021845,2.93651323,653.1,652.46,1.59796734]
[1740090022043,2.93651323,653.09,652.46,1.59796734]
[1740090022245,2.93651323,653.08,652.46,1.59796734]
[1740090022445,2.93651323,653.07,652.46,1.59796734]
[1740090022640,2.93651323,653.06,652.46,1.59796734]
[1740090022845,2.93651323,653.05,652.46,1.59796734]
[1740090023043,2.93651323,653.04,652.46,1.59796734]